bitfinex/quotes_SOLUSD_20250520
["timestamp","ask_amount","ask_price","bid_price","bid_amount"]
[1747782985045,12.47134244,168.62,168.55,0.03370103]
[1747782985353,20.75303882,168.65,168.55,0.03370103]
[1747782985546,12.47134244,168.63,168.55,0.03370103]
[1747782986156,5.9304946,168.62,168.55,0.03370103]
[1747782987871,5.92943966,168.65,168.56,8.0242]
[1747782988047,20.75238431,168.66,168.57,5.93225366]
[1747782988250,5.9290881,168.66,168.57,5.96596042]
[1747782988576,5.9290881,168.66,168.58,0.03370476]
[1747782988747,5.9290881,168.66,168.58,26.03370476]
[1747782989264,5.9283851,168.68,168.6,18.64964886]
[1747782989469,5.9283851,168.68,168.61,34.54]
[1747782989668,5.9283851,168.68,168.62,26.0]
[1747782989978,5.9283851,168.68,168.62,28.95689874]
[1747782990169,5.9283851,168.68,168.63,0.03369476]
[1747782990672,5.92733092,168.71,168.63,0.03369476]
[1747782990852,20.74565822,168.71,168.63,0.03369476]
[1747782991473,33.21700066,168.71,168.63,0.03369476]
[1747782991773,12.47134244,168.68,168.63,0.03369476]
[1747782991976,12.47134244,168.67,168.63,0.03369476]
[1747782992755,20.75180836,168.66,168.63,0.03369476]
[1747782993377,12.47134244,168.65,168.63,0.03369476]
[1747782993763,33.2231508,168.66,168.63,0.03369476]
[1747782993969,20.75180836,168.66,168.63,0.03369476]
[1747782994776,5.9290881,168.66,168.63,0.03369476]
[1747782995875,20.74934786,168.68,168.63,0.03369476]
[1747782996979,33.2206903,168.68,168.63,0.03369476]
[1747782997162,12.47134244,168.67,168.63,0.03369476]
[1747782997877,20.75180836,168.66,168.63,0.03369476]
[1747782998285,33.2231508,168.66,168.63,0.03369476]
[1747782999774,12.47134244,168.64,168.63,0.03369476]
[1747782999984,18.40113371,168.64,168.63,0.03369476]
[1747783000454,49.52212501,168.64,168.63,0.03369476]
[1747783000657,76.18212501,168.64,168.63,0.03369476]
[1747783000856,45.06113371,168.64,168.63,0.03369476]
[1747783002193,32.58979127,168.64,168.63,0.03369476]
[1747783002378,45.06113371,168.64,168.63,0.03369476]
[1747783003194,32.58979127,168.64,168.63,0.03369476]
[1747783003499,45.06113371,168.64,168.63,0.03369476]
[1747783004763,18.40113371,168.64,168.63,0.03369476]
[1747783005997,155.60113371,168.64,168.63,0.03369476]
[1747783010572,143.12979127,168.64,168.63,0.03369476]
[1747783011767,5.92979127,168.64,168.63,0.03369476]
[1747783012184,5.92873658,168.67,168.63,0.03369476]
[1747783012688,5.92873658,168.67,168.64,1.5076]
[1747783012861,5.92733092,168.71,168.64,27.5076]
[1747783013058,5.92733092,168.71,168.65,0.03369077]
[1747783013686,20.74513004,168.72,168.65,0.03369077]
[1747783014271,33.21647248,168.72,168.65,0.03369077]
[1747783014478,12.47134244,168.71,168.65,0.03369077]
[1747783014789,33.21647248,168.72,168.65,0.03369077]
[1747783015989,12.47134244,168.71,168.65,0.03369077]
[1747783016367,20.74513004,168.72,168.65,0.03369077]
[1747783016610,12.47134244,168.71,168.65,0.03369077]
[1747783018192,5.92768227,168.7,168.65,0.03369077]
[1747783019300,12.47134244,168.67,168.65,0.03369077]
[1747783019479,50.88529934,168.7,168.65,0.03369077]
[1747783019480,12.47134244,168.66,168.65,0.03369077]
[1747783020369,18.40043054,168.66,168.65,0.03369077]
[1747783021197,5.9290881,168.66,168.65,0.03369077]
[1747783021399,5.92557478,168.76,168.66,26.0]
[1747783021606,20.74018051,168.76,168.68,26.0]
[1747783021976,20.74018051,168.76,168.68,59.5]
[1747783023001,20.74018051,168.76,168.68,65.42836963]
[1747783023200,5.92557478,168.76,168.68,59.5]
[1747783023608,5.92557478,168.76,168.69,33.5]
[1747783024913,56.27799814,168.82,168.69,39.42784741]
[1747783024914,12.47134244,168.8,168.69,39.42784741]
[1747783025910,20.73582557,168.79,168.69,39.42784741]
[1747783026905,12.47134244,168.78,168.69,33.5]
[1747783027304,33.20716801,168.79,168.69,33.5]
[1747783027500,33.20716801,168.79,168.69,39.42796064]
[1747783028709,33.20716801,168.79,168.69,33.5]
[1747783029799,12.47134244,168.78,168.69,33.5]
[1747783030104,12.47134244,168.77,168.69,33.48]
[1747783030810,5.92557478,168.76,168.69,33.48]
[1747783032496,33.21085417,168.76,168.65,13.49889135]
[1747783032812,12.47134244,168.73,168.65,41.04969077]
[1747783033118,12.47134244,168.72,168.65,7.56969077]
[1747783033317,20.74196989,168.74,168.65,1.55559077]
[1747783033531,12.47134244,168.73,168.65,1.55559077]
[1747783033686,33.21331233,168.74,168.65,1.55559077]
[1747783033893,12.47134244,168.73,168.65,1.55559077]
[1747783034087,12.47134244,168.72,168.65,1.55559077]
[1747783034289,12.47134244,168.71,168.65,0.03369077]
[1747783035117,20.74688796,168.7,168.65,0.03369077]
[1747783036018,5.92768227,168.7,168.65,0.03369077]
[1747783036916,5.92733092,168.71,168.65,0.03369077]
[1747783038009,0.5,168.76,168.65,0.03369077]
[1747783038010,27.28587942,168.76,168.65,0.03369077]
[1747783038198,5.92592592,168.75,168.66,52.66]
[1747783039204,20.74011176,168.76,168.66,58.58884976]
[1747783039720,33.2114542,168.76,168.66,52.66]
[1747783039925,12.47134244,168.74,168.66,58.56]
[1747783040091,12.47134244,168.75,168.66,58.56]
[1747783040292,33.2114542,168.76,168.66,58.56]
[1747783041424,20.74196989,168.74,168.66,58.56]
[1747783041594,12.47134244,168.73,168.66,58.56]
[1747783041791,20.74196989,168.74,168.66,58.56]
[1747783042721,20.74196989,168.74,168.66,64.48887906]
[1747783043517,14.81569278,168.74,168.66,64.48887906]
[1747783043705,5.92592592,168.75,168.66,64.48887906]
[1747783043898,20.74074073,168.75,168.66,64.48887906]
[1747783044099,33.21208317,168.75,168.66,58.56]
[1747783044405,20.74074073,168.75,168.66,58.56]
[1747783045419,20.74319919,168.73,168.67,32.56]
[1747783046995,5.92662834,168.73,168.68,1.5331]
[1747783047736,20.74022687,168.76,168.68,1.5331]
[1747783048898,33.21156931,168.76,168.68,1.5331]
[1747783049624,20.74022687,168.76,168.68,1.5331]
[1747783049839,20.74022687,168.76,168.69,32.56]
[1747783050041,20.74022687,168.76,168.69,58.56]
[1747783050042,5.92557478,168.76,168.69,58.56]
[1747783050202,5.92487261,168.78,168.72,26.0]
[1747783050599,5.92487261,168.78,168.73,0.03029115]
[1747783051229,20.73639586,168.79,168.73,0.03029115]
[1747783052037,5.92452159,168.79,168.73,18.67994001]
[1747783052333,5.92452159,168.79,168.74,58.59028935]
[1747783052716,5.92452159,168.79,168.75,0.03028756]
[1747783053098,14.8090675,168.82,168.77,26.0]
[1747783053099,5.92346878,168.82,168.77,26.0]
[1747783053518,5.92346878,168.82,168.78,0.03028217]
[1747783054309,5.92311792,168.83,168.77,26.0]
[1747783055299,20.73091274,168.83,168.77,26.0]
[1747783055911,14.80511228,168.87,168.78,71.28964886]
[1747783056311,12.47134244,168.85,168.79,32.56]
[1747783057008,12.47134244,168.86,168.79,32.56]
[1747783057336,33.19816964,168.87,168.8,0.03197024]
[1747783058847,33.19816964,168.87,168.79,32.56]
[1747783059049,20.7268272,168.87,168.79,32.56]
[1747783059211,33.19816964,168.87,168.79,32.56]
[1747783060239,12.47134244,168.83,168.76,34.1603]
[1747783060739,20.7268272,168.87,168.76,34.1603]
[1747783060740,20.7268272,168.87,168.76,60.1603]
[1747783061031,33.19816964,168.87,168.76,40.08583738]
[1747783061239,33.19816964,168.87,168.77,44.64964886]
[1747783061435,20.7268272,168.87,168.77,44.64964886]
[1747783061818,33.19816964,168.87,168.77,44.64964886]
[1747783062336,14.80511228,168.87,168.77,26.0]
[1747783062826,12.47134244,168.85,168.77,26.0]
[1747783063018,12.47134244,168.84,168.77,26.0]
[1747783063538,12.47134244,168.85,168.77,26.0]
[1747783064240,5.92276711,168.84,168.77,26.0]
[1747783064418,20.7296849,168.84,168.77,26.0]
[1747783065541,5.92276711,168.84,168.77,26.0]
[1747783066235,14.8046673,168.87,168.77,31.92519534]
[1747783066444,12.47134244,168.85,168.77,26.0]
[1747783066828,12.47134244,168.86,168.77,26.0]
[1747783067028,12.47134244,168.86,168.77,31.92496455]
[1747783067844,14.8046673,168.87,168.77,31.92496455]
[1747783068137,12.47134244,168.85,168.77,31.92496455]
[1747783068341,5.92241634,168.85,168.77,31.92496455]
[1747783069521,5.92206561,168.86,168.78,18.64964886]
[1747783069735,5.92206561,168.86,168.78,25.20694886]
[1747783070261,12.47134244,168.83,168.77,26.0]
[1747783070547,20.72722965,168.86,168.77,26.0]
[1747783070846,12.47134244,168.85,168.77,26.0]
[1747783071230,20.72722965,168.86,168.77,26.0]
[1747783071456,5.92276711,168.84,168.77,26.0]
[1747783072150,18.39410955,168.84,168.77,26.0]
[1747783072854,5.92276711,168.84,168.77,26.0]
[1747783073149,18.39410955,168.84,168.77,26.0]
[1747783073732,33.20102734,168.84,168.77,26.0]
[1747783074251,12.47134244,168.83,168.77,26.0]
[1747783074425,33.20102734,168.84,168.77,26.0]
[1747783074631,20.7296849,168.84,168.77,26.0]
[1747783074832,33.20102734,168.84,168.77,26.0]
[1747783075033,12.47134244,168.83,168.77,26.0]
[1747783075441,12.47134244,168.8,168.77,26.0]
[1747783075730,12.47134244,168.8,168.75,32.92]
[1747783075731,12.47134244,168.78,168.72,34.4748]
[1747783076164,12.47134244,168.78,168.72,60.4748]
[1747783076525,33.20716801,168.79,168.72,60.4748]
[1747783076745,5.92452159,168.79,168.72,60.4748]
[1747783076928,5.92452159,168.79,168.72,66.40173464]
[1747783077756,7.7686,168.84,168.75,26.0]
[1747783077757,5.92381967,168.81,168.75,26.0]
[1747783078146,5.92381967,168.81,168.76,26.0]
[1747783078452,5.92276711,168.84,168.76,26.0]
[1747783079168,33.20102734,168.84,168.76,26.0]
[1747783079747,20.7296849,168.84,168.76,26.0]
[1747783080258,5.92276711,168.84,168.76,38.14715624]
[1747783081357,5.92241634,168.85,168.76,38.14715624]
[1747783082161,5.92241634,168.85,168.77,18.64964886]
[1747783082360,5.92241634,168.85,168.78,34.5316]
[1747783082959,5.92241634,168.85,168.81,26.0]
[1747783083455,20.72630865,168.87,168.81,26.0]
[1747783083662,33.19765109,168.87,168.81,26.0]
[1747783084489,5.92171492,168.87,168.81,26.0]
[1747783084862,5.92171492,168.87,168.82,0.5]
[1747783085062,33.19734468,168.87,168.82,0.5]
[1747783085367,33.19734468,168.87,168.8,26.0]
[1747783086156,20.72600224,168.87,168.8,26.0]
[1747783086453,33.19734468,168.87,168.8,26.0]
[1747783087084,33.19734468,168.87,168.78,7.53634786]
[1747783087085,12.47134244,168.86,168.78,7.53634786]
[1747783087282,20.72600224,168.87,168.8,26.0]
[1747783088090,33.19734468,168.87,168.8,26.0]
[1747783088473,20.72600224,168.87,168.8,26.0]
[1747783088876,14.80428732,168.87,168.8,26.0]
[1747783089079,12.47134244,168.88,168.8,31.924164]
[1747783089387,5.92101367,168.89,168.8,31.924164]
[1747783089890,5.92101367,168.89,168.81,18.64964886]
[1747783090880,5.92066311,168.9,168.83,26.0]
[1747783091190,15.30689229,168.91,168.84,18.64964886]
[1747783091191,8.75591271,168.91,168.84,18.64964886]
[1747783091370,8.75591271,168.91,168.87,26.0]
[1747783091571,2.83554985,168.91,168.87,27.6355]
[1747783091877,8.75597241,168.91,168.87,26.0]
[1747783092660,2.83554985,168.91,168.87,26.0]
[1747783093264,2.83554985,168.91,168.89,26.0]
[1747783093594,8.75588697,168.91,168.88,26.0]
[1747783098471,2.83554985,168.91,168.88,26.0]
[1747783099066,2.83554985,168.91,168.89,26.0]
[1747783101591,2.83554985,168.91,168.9,26.0]
[1747783103586,2.83554985,168.91,168.9,31.92066311]
[1747783103789,2.83554985,168.91,168.9,26.0]
[1747783104689,2.83554985,168.91,168.9,31.92066311]
[1747783104868,2.83554985,168.91,168.9,50.57031197]
[1747783105889,2.83554985,168.91,168.9,26.0]
[1747783106606,2.83554985,168.91,168.9,58.64]
[1747783107694,2.83554985,168.91,168.9,26.0]
[1747783108204,2.83554985,168.91,168.9,58.64]
[1747783110202,2.83554985,168.91,168.9,83.21031197]
[1747783112405,2.83554985,168.91,168.9,58.64]
[1747783113390,2.83554985,168.91,168.9,64.56066311]
[1747783114276,2.83554985,168.91,168.9,58.64]
[1747783115303,2.83554985,168.91,168.9,26.0]
[1747783115974,2.83554985,168.91,168.89,32.64]
[1747783116180,2.83554985,168.91,168.89,58.64]
[1747783118196,2.83554985,168.91,168.9,24.57031197]
[1747783119010,2.83554985,168.91,168.89,32.64]
[1747783119615,2.83554985,168.91,168.89,38.5609748]
[1747783122895,2.83554985,168.91,168.9,18.64964886]
[1747783124503,2.83554985,168.91,168.9,21.93999542]
[1747783125026,2.83554985,168.91,168.9,54.48065853]
[1747783125324,13.82345695,169.01,168.97,26.0]
[1747783125487,7.50185695,169.01,168.97,26.0]
[1747783125902,5.91705695,169.01,168.97,26.0]
[1747783126120,5.91610956,169.03,168.97,26.0]
[1747783128717,5.91575958,169.04,168.97,26.0]
[1747783130018,12.47134244,169.02,168.95,59.16]
[1747783130520,5.91575958,169.04,168.96,18.64964886]
[1747783131918,5.91575958,169.04,168.96,24.56805155]
[1747783132215,5.91575958,169.04,168.99,26.0]
[1747783132391,5.91470988,169.07,168.99,26.0]
[1747783134002,5.91470988,169.07,168.99,31.91747635]
[1747783134928,20.70071315,169.08,168.99,31.91747635]
[1747783136125,5.91436006,169.08,169.03,26.0]
[1747783137001,22.49694923,169.11,169.03,26.0]
[1747783137403,22.49694923,169.11,169.04,26.0]
[1747783137900,5.91366055,169.1,169.04,26.0]
[1747783138624,20.69781193,169.1,169.04,26.0]
[1747783138831,33.16915437,169.1,169.04,26.0]
[1747783139007,12.47134244,169.09,169.04,26.0]
[1747783140226,5.91436006,169.08,169.04,26.0]
[1747783142109,5.91436006,169.08,169.01,33.14]
[1747783142110,12.47134244,169.07,169.01,33.14]
[1747783142312,5.91505974,169.06,168.99,33.14]
[1747783142512,20.70270909,169.06,168.99,33.14]
[1747783142806,12.47134244,169.05,168.97,33.14]
[1747783143011,12.47134244,169.03,168.96,3.02511229]
[1747783143207,12.47134244,169.03,168.95,59.14]
[1747783143432,12.47134244,169.02,168.95,26.0]
[1747783144261,12.47134244,169.02,168.94,34.7204]
[1747783144424,5.91680965,169.01,168.94,60.7204]
[1747783144628,5.91680965,169.01,168.94,66.63958586]
[1747783144823,5.91680965,169.01,168.94,40.63958586]
[1747783145216,5.91680965,169.01,168.94,66.63958586]
[1747783145423,5.91540964,169.05,168.98,18.64964886]
[1747783146320,20.70345543,169.06,168.97,26.0]
[1747783146517,33.17479787,169.06,168.97,26.0]
[1747783147127,33.17479787,169.06,168.95,24.5684576]
[1747783147331,20.70345543,169.06,168.97,26.0]
[1747783147524,33.17479787,169.06,168.97,26.0]
[1747783147925,12.47134244,169.05,168.97,26.0]
[1747783148328,5.91575958,169.04,168.98,26.0]
[1747783148839,5.91575958,169.04,168.99,26.0]
[1747783150541,20.70345543,169.06,168.99,26.0]
[1747783152646,33.17479787,169.06,168.99,26.0]
[1747783153944,12.47134244,169.05,168.99,26.0]
[1747783154142,33.17479787,169.06,168.99,26.0]
[1747783154748,20.70345543,169.06,168.99,26.0]
[1747783155451,33.17479787,169.06,168.99,26.0]
[1747783156652,20.70345543,169.06,168.99,26.0]
[1747783156856,14.78839569,169.06,168.99,26.0]
[1747783158252,20.70345543,169.06,168.99,26.0]
[1747783158750,12.47134244,169.03,168.97,33.14]
[1747783159050,12.47134244,169.03,168.89,8.34201029]
[1747783159051,12.47134244,168.98,168.89,8.34201029]
[1747783159349,12.47134244,168.95,168.89,8.34201029]
[1747783160236,20.71741446,168.94,168.87,17.375]
[1747783160623,33.1887569,168.94,168.87,17.375]
[1747783160828,12.47134244,168.93,168.87,17.375]
[1747783161455,12.47134244,168.92,168.87,17.375]
[1747783161954,12.47134244,168.89,168.87,17.375]
[1747783162153,5.92136428,168.88,168.87,17.375]
[1747783163151,5.92066311,168.9,168.87,17.375]
[1747783164252,5.92031259,168.91,168.87,17.375]
[1747783166349,45.01095411,168.93,168.87,17.375]
[1747783167555,32.53961167,168.93,168.87,17.375]
[1747783167732,45.01095411,168.93,168.87,17.375]
[1747783168933,12.47134244,168.92,168.87,17.375]
[1747783169541,45.01095411,168.93,168.87,17.375]
[1747783171145,12.47134244,168.92,168.87,17.375]
[1747783171838,12.47134244,168.91,168.87,17.375]
[1747783173056,5.92066311,168.9,168.87,17.375]
[1747783175032,12.47134244,168.89,168.87,17.375]
[1747783175232,33.19366333,168.9,168.87,17.375]
[1747783175458,5.92066311,168.9,168.87,17.375]
[1747783176240,18.39200555,168.9,168.87,17.375]
[1747783176441,12.47134244,168.89,168.87,17.375]
[1747783177076,18.39200555,168.9,168.87,17.375]
[1747783177264,27.27300022,168.9,168.87,17.375]
[1747783177664,12.47134244,168.89,168.87,17.375]
[1747783178569,14.80165778,168.9,168.87,17.375]
[1747783178779,5.92031259,168.91,168.87,17.375]
[1747783178980,18.39165503,168.91,168.87,17.375]
[1747783179663,5.92031259,168.91,168.87,17.375]
[1747783180484,137.2,168.92,168.87,23.29658487]
[1747783180968,143.12004551,168.92,168.87,23.29658487]
[1747783181291,5.91926127,168.94,168.87,23.29658487]
[1747783181476,5.91926127,168.94,168.88,1.6381]
[1747783181660,5.9189478,168.95,168.88,1.6381]
[1747783182597,32.53861776,168.96,168.9,26.0]
[1747783182757,26.62,168.96,168.9,26.0]
[1747783183152,5.91828442,168.97,168.9,26.0]
[1747783183489,5.91828442,168.97,168.91,5.92031259]
[1747783186181,5.9178601,168.98,168.91,5.92031259]
[1747783192673,32.53750991,168.99,168.91,5.92031259]
[1747783193890,12.47134244,168.99,168.91,6.3625]
[1747783194098,12.47134244,168.98,168.92,26.0]
[1747783194314,12.47134244,168.94,168.87,17.375]
[1747783194502,12.47134244,168.92,168.87,17.375]
[1747783194866,26.62,168.94,168.87,17.375]
[1747783195075,12.47134244,168.93,168.87,17.375]
[1747783196000,5.91996211,168.92,168.87,17.375]
[1747783196605,5.91967277,168.93,168.87,23.29666554]
[1747783196774,32.53936737,168.94,168.87,23.29666554]
[1747783196979,32.53936737,168.94,168.9,26.0]
[1747783197775,26.62,168.94,168.9,26.0]
[1747783198277,32.5378601,168.98,168.9,31.9205616]
[1747783198477,5.9178601,168.98,168.9,31.9205616]
[1747783199213,18.38920254,168.98,168.9,26.0]
[1747783199512,33.18385279,168.98,168.88,26.0]
[1747783199904,12.47134244,168.97,168.88,26.0]
[1747783200817,5.9185606,168.96,168.89,3.29619438]
[1747783201177,5.9178601,168.98,168.9,18.64964886]
[1747783201476,5.91758702,168.99,168.92,18.64964886]
[1747783201701,1.5855,169.01,168.92,18.64964886]
[1747783201702,5.91680965,169.01,168.92,18.64964886]
[1747783202997,5.91645959,169.02,168.93,5.91961167]
[1747783203196,5.91645959,169.02,168.94,47.94553917]
[1747783203409,1.5452,169.05,168.97,26.0]
[1747783203616,6.4347,169.08,168.97,58.2]
[1747783203791,6.4347,169.08,168.98,18.64964886]
[1747783203998,5.91470988,169.07,169.01,26.0]
[1747783204216,6.4347,169.12,169.02,18.64964886]
[1747783204378,12.47134244,169.11,169.03,26.0]
[1747783204581,12.47134244,169.11,169.03,32.2]
[1747783204777,5.9126116,169.13,169.03,32.2]
[1747783204778,12.47134244,169.09,169.03,32.2]
[1747783204978,5.91470988,169.07,169.03,32.2]
[1747783205187,12.47134244,169.06,168.99,26.0]
[1747783205388,12.47134244,169.04,168.99,26.0]
[1747783205605,12.47134244,169.04,168.98,32.2]
[1747783205988,12.47134244,169.03,168.98,32.2]
[1747783206187,12.47134244,169.04,168.98,32.2]
[1747783206701,56.91063399,169.07,168.98,32.2]
[1747783206901,12.47134244,169.03,168.98,32.2]
[1747783207113,5.91645959,169.02,168.98,32.2]
[1747783211421,5.91610956,169.03,168.98,32.2]
[1747783212203,20.70638347,169.03,168.98,32.2]
[1747783212411,33.17772591,169.03,168.98,32.2]
[1747783212688,12.47134244,169.0,168.94,221.42]
[1747783212893,12.47134244,168.99,168.93,32.18]
[1747783213093,12.47134244,168.98,168.93,32.18]
[1747783213393,5.91821033,168.97,168.93,32.18]
[1747783214117,20.71373616,168.97,168.93,32.18]
[1747783214628,20.71373616,168.97,168.91,26.0]
[1747783215226,5.91821033,168.97,168.91,26.0]
[1747783215430,5.91750991,168.99,168.91,26.0]
[1747783216621,18.38885235,168.99,168.91,26.0]
[1747783217325,5.91750991,168.99,168.91,31.92016145]
[1747783217821,5.91750991,168.99,168.91,26.0]
[1747783218005,5.91750991,168.99,168.91,31.92024415]
[1747783218591,18.38885235,168.99,168.91,26.0]
[1747783218897,12.47134244,168.98,168.91,26.0]
[1747783219098,12.47134244,168.98,168.89,6.2196]
[1747783219379,12.47134244,168.96,168.88,32.18]
[1747783219636,53.86599269,168.98,168.88,38.10122933]
[1747783220328,12.47134244,168.97,168.88,64.10122933]
[1747783220527,5.9185606,168.96,168.89,9.21369293]
[1747783221517,5.91715976,169.0,168.9,18.64964886]
[1747783221833,39.09134244,168.99,168.9,18.64964886]
[1747783222431,12.47134244,168.98,168.9,18.64964886]
[1747783222634,5.91821033,168.97,168.9,18.64964886]
[1747783222833,18.38955277,168.97,168.88,32.18]
[1747783223037,33.1850786,168.97,168.88,32.18]
[1747783223455,12.47134244,168.95,168.88,32.18]
[1747783223620,12.47134244,168.94,168.88,32.18]
[1747783223817,12.47134244,168.94,168.85,6.6562]
[1747783223818,12.47134244,168.93,168.85,6.6562]
[1747783224010,26.0,168.89,168.82,17.375]
[1747783224234,1.6605,168.91,168.82,17.375]
[1747783224235,27.6605,168.91,168.82,17.375]
[1747783224554,0.5,168.9,168.82,17.375]
[1747783224758,20.72354786,168.89,168.82,17.375]
[1747783224917,0.5,168.88,168.82,17.375]
[1747783225117,12.47134244,168.85,168.82,17.375]
[1747783225758,12.47134244,168.86,168.82,17.375]
[1747783225922,12.47134244,168.87,168.82,17.375]
[1747783226121,12.47134244,168.86,168.82,17.375]
[1747783226713,20.72354786,168.89,168.82,17.375]
[1747783226714,18.39375878,168.85,168.82,17.375]
[1747783226914,12.47134244,168.83,168.82,17.375]
[1747783227431,5.92241634,168.85,168.82,17.375]
[1747783227629,12.47134244,168.84,168.82,17.375]
[1747783227836,5.92241634,168.85,168.82,17.375]
[1747783228149,18.39375878,168.85,168.82,17.375]
[1747783228666,12.47134244,168.83,168.82,17.375]
[1747783228838,18.39446036,168.83,168.82,17.375]
[1747783231077,5.92311792,168.83,168.82,17.375]
[1747783231377,18.39446036,168.83,168.82,17.375]
[1747783234180,5.92311792,168.83,168.82,17.375]
[1747783234399,18.39446036,168.83,168.82,17.375]
[1747783236570,5.92311792,168.83,168.82,17.375]
[1747783236769,18.39446036,168.83,168.82,17.375]
[1747783237684,5.92311792,168.83,168.82,17.375]
[1747783237870,18.39446036,168.83,168.82,17.375]
[1747783238382,20.05456036,168.83,168.82,17.375]
[1747783240089,26.0,168.8,168.54,18.65547688]
[1747783240260,19.14964886,168.79,168.62,39.80882748]
[1747783240460,19.14964886,168.79,168.6,6.1434]
[1747783240461,12.47134244,168.75,168.63,26.0]
[1747783240692,12.47134244,168.76,168.67,26.0]
[1747783240867,26.0,168.8,168.67,26.0]
[1747783241062,26.64,168.79,168.67,26.0]
[1747783241372,12.47134244,168.73,168.65,26.0]
[1747783241580,12.47134244,168.72,168.64,26.0]
[1747783241780,12.47134244,168.71,168.65,34.58]
[1747783241980,12.47134244,168.72,168.64,26.0]
[1747783242166,12.47134244,168.72,168.65,34.58]
[1747783242660,26.64,168.73,168.65,34.58]
[1747783242858,12.47134244,168.71,168.65,34.58]
[1747783243056,12.47134244,168.71,168.63,34.58]
[1747783243057,12.47134244,168.68,168.63,34.58]
[1747783243277,20.75057804,168.67,168.63,34.58]
[1747783243487,33.22192048,168.67,168.63,34.58]
[1747783243788,20.75057804,168.67,168.63,34.58]
[1747783244282,33.22192048,168.67,168.63,34.58]
[1747783244587,12.47134244,168.66,168.61,221.58]
[1747783244786,12.47134244,168.65,168.61,256.16]
[1747783244991,20.75057804,168.67,168.61,256.16]
[1747783245284,12.47134244,168.66,168.61,256.16]
[1747783245660,19.78360658,168.66,168.61,256.16]
[1747783247687,5.92943966,168.65,168.61,256.16]
[1747783250293,5.92873658,168.67,168.61,256.16]
[1747783250585,32.58842968,168.68,168.61,256.16]
[1747783250889,5.92805508,168.69,168.61,262.09068707]
[1747783251079,26.66,168.71,168.62,19.14964886]
[1747783251275,26.66,168.71,168.62,45.14964886]
[1747783251491,26.66,168.71,168.62,26.5]
[1747783251883,19.78360658,168.69,168.62,26.5]
[1747783252189,5.92768227,168.7,168.62,26.5]
[1747783252897,5.92768227,168.7,168.62,26.0]
[1747783252898,19.78360658,168.69,168.62,26.0]
[1747783253076,19.78360658,168.68,168.61,221.58]
[1747783253274,19.78360658,168.67,168.62,34.6]
[1747783253685,19.78360658,168.68,168.62,34.6]
[1747783254296,25.71234316,168.67,168.62,34.6]
[1747783254494,25.71234316,168.67,168.61,221.58]
[1747783254694,25.71234316,168.67,168.62,33.58]
[1747783256090,19.78360658,168.65,168.62,33.58]
[1747783256296,19.78360658,168.64,168.62,33.58]
[1747783256491,19.78360658,168.63,168.62,33.58]
[1747783256921,19.78360658,168.63,168.57,33.58]
[1747783257202,19.78360658,168.6,168.57,33.58]
[1747783257673,19.78360658,168.59,168.52,27.6549]
[1747783257881,5.9326056,168.56,168.53,33.58]
[1747783258620,5.9326056,168.56,168.52,1.6549]
[1747783259070,25.71621218,168.56,168.51,33.58]
[1747783259370,5.9326056,168.56,168.51,33.58]
[1747783259570,19.78360658,168.55,168.5,221.76]
[1747783259770,5.9326056,168.56,168.5,221.76]
[1747783259996,5.93225366,168.57,168.5,227.69468182]
[1747783260178,5.93225366,168.57,168.5,247.26]
[1747783260878,46.44360658,168.59,168.51,18.64964886]
[1747783261101,46.44360658,168.59,168.53,26.0]
[1747783261102,5.93164325,168.59,168.53,26.0]
[1747783261302,32.5912976,168.6,168.53,26.0]
[1747783261595,52.37374949,168.63,168.53,26.0]
[1747783261769,52.37374949,168.63,168.54,0.5]
[1747783261973,26.66,168.63,168.56,31.9326056]
[1747783262175,5.93036709,168.63,168.56,31.9326056]
[1747783262404,19.78360658,168.66,168.57,1.6241]
[1747783262584,52.37234316,168.67,168.59,26.0]
[1747783263385,32.58873658,168.67,168.59,26.0]
[1747783263591,52.37234316,168.67,168.59,26.0]
[1747783263794,19.78360658,168.65,168.59,26.0]
[1747783264611,19.78360658,168.64,168.59,26.0]